bitfinex/quotes_BTCUSD_20220218
["timestamp","ask_amount","ask_price","bid_price","bid_amount"]
[1645145579813,0.71788714,40449.0,40448.0,0.00018552]
[1645145580213,0.40438756,40449.0,40448.0,0.00018552]
[1645145580614,0.40238756,40449.0,40448.0,0.00018552]
[1645145581215,0.40438756,40449.0,40448.0,0.00018552]
[1645145582617,0.40238756,40449.0,40448.0,0.00018552]
[1645145583263,0.08865957,40449.0,40448.0,0.00018552]
[1645145583465,0.08865957,40449.0,40448.0,0.24018552]
[1645145583763,0.08085957,40449.0,40448.0,0.24018552]
[1645145584367,0.01902557,40449.0,40448.0,0.24018552]
[1645145584768,0.01702557,40449.0,40448.0,0.62530352]
[1645145585164,0.01702557,40449.0,40448.0,0.91684701]
[1645145585864,0.002,40454.0,40449.0,1.70593464]
[1645145586069,0.002,40454.0,40449.0,1.70586981]
[1645145586264,0.002,40454.0,40449.0,1.80586981]
[1645145586465,0.002,40454.0,40451.0,0.335118]
[1645145586665,6e-05,40455.0,40451.0,0.335118]
[1645145586666,6e-05,40455.0,40453.0,0.52869128]
[1645145586912,6e-05,40455.0,40454.0,0.06181112]
[1645145587113,6e-05,40455.0,40454.0,0.39692912]
[1645145587915,0.26146735,40460.0,40456.0,0.335118]
[1645145588115,0.42782599,40465.0,40457.0,1.644118]
[1645145588116,0.00020206,40458.0,40457.0,1.644118]
[1645145588314,0.00020206,40458.0,40457.0,1.855321]
[1645145588915,0.00037392,40465.0,40464.0,0.19478828]
[1645145589115,0.00037392,40466.0,40465.0,0.335118]
[1645145589314,0.00037392,40467.0,40466.0,0.19124992]
[1645145589514,0.31372799,40469.0,40466.0,0.19124992]
[1645145589715,0.00037392,40470.0,40466.0,0.19124992]
[1645145589716,0.33075356,40467.0,40466.0,0.19124992]
[1645145589915,0.33075356,40467.0,40466.0,0.11561662]
[1645145590315,0.44644756,40467.0,40466.0,0.17742336]
[1645145590516,0.39256256,40467.0,40466.0,0.17742336]
[1645145590766,0.19452857,40467.0,40466.0,0.06180674]
[1645145590966,0.56054456,40467.0,40466.0,0.06180674]
[1645145591167,0.44485056,40467.0,40466.0,0.06180674]
[1645145591367,0.56154456,40467.0,40466.0,0.06180674]
[1645145591567,0.19552857,40467.0,40466.0,0.06180674]
[1645145591767,0.56154456,40467.0,40466.0,0.06180674]
[1645145592165,0.19552857,40467.0,40466.0,0.06180674]
[1645145592665,0.07883457,40467.0,40466.0,0.06180674]
[1645145592867,0.19452857,40467.0,40466.0,0.06180674]
[1645145593466,0.44729846,40467.0,40466.0,0.06180674]
[1645145594613,0.44629846,40467.0,40466.0,0.06180674]
[1645145595019,0.33060446,40467.0,40466.0,0.06180674]
[1645145595221,0.01616643,40467.0,40466.0,0.06180674]
[1645145595516,0.01816643,40467.0,40466.0,0.06180674]
[1645145595715,0.002,40467.0,40466.0,0.06180674]
[1645145596316,0.01816643,40467.0,40466.0,0.06180674]
[1645145596520,0.01616643,40467.0,40466.0,0.06180674]
[1645145597017,0.13186043,40467.0,40466.0,0.06180674]
[1645145597216,0.01616643,40467.0,40466.0,0.06180674]
[1645145598016,0.01622785,40467.0,40466.0,0.06180674]
[1645145599869,0.13192185,40467.0,40466.0,0.06180674]
[1645145600069,0.01622785,40467.0,40466.0,0.06180674]
[1645145600869,0.01622785,40467.0,40466.0,0.04535564]
[1645145602617,0.11685174,40474.0,40469.0,0.4]
[1645145602816,0.07412338,40474.0,40470.0,0.335039]
[1645145603012,0.07412338,40474.0,40472.0,0.25788262]
[1645145603212,0.00037849,40475.0,40473.0,0.385039]
[1645145603415,0.2068,40476.0,40474.0,0.0494]
[1645145603614,0.2068,40476.0,40475.0,0.335039]
[1645145603817,0.00012388,40476.0,40475.0,0.385039]
[1645145604413,0.00037849,40478.0,40475.0,0.385039]
[1645145604616,0.283275,40490.0,40475.0,0.385039]
[1645145604617,0.92350399,40494.0,40478.0,1.370772]
[1645145604814,0.92350399,40494.0,40484.0,1.309]
[1645145604815,0.41830399,40494.0,40484.0,1.309]
[1645145605015,0.05,40498.0,40485.0,1.693439]
[1645145605216,0.05,40498.0,40487.0,0.335039]
[1645145605421,0.2212,40500.0,40493.0,0.19429559]
[1645145605673,0.2212,40500.0,40497.0,0.061748]
[1645145605869,0.2212,40500.0,40497.0,0.12349568]
[1645145606066,0.2212,40500.0,40498.0,0.335039]
[1645145606268,0.2117,40500.0,40498.0,0.434439]
[1645145606465,0.00021592,40501.0,40499.0,0.24882842]
[1645145606665,0.00021592,40501.0,40499.0,0.29822842]
[1645145606870,0.00021592,40501.0,40500.0,0.05]
[1645145607066,0.00021592,40501.0,40499.0,0.16114333]
[1645145607067,0.115694,40501.0,40499.0,0.16114333]
[1645145607267,0.4494,40505.0,40499.0,0.16114333]
[1645145607268,0.12690043,40500.0,40499.0,0.16114333]
[1645145607467,0.01616643,40500.0,40499.0,0.16114333]
[1645145607667,0.12690043,40500.0,40499.0,0.16114333]
[1645145607865,0.01616643,40500.0,40499.0,0.16114333]
[1645145608066,0.00021592,40503.0,40499.0,0.16114333]
[1645145608468,0.110734,40504.0,40499.0,0.16114333]
[1645145608668,0.12711635,40503.0,40502.0,0.23603978]
[1645145608968,0.12711635,40503.0,40502.0,0.28603978]
[1645145609612,0.12690043,40503.0,40502.0,0.28603978]
[1645145610212,0.12690043,40503.0,40501.0,0.23524292]
[1645145611617,0.110734,40502.0,40501.0,0.23524292]
[1645145611817,0.01616643,40503.0,40501.0,0.23524292]
[1645145613016,0.01622793,40503.0,40501.0,0.23524292]
[1645145614065,0.01622793,40503.0,40501.0,0.56084976]
[1645145614672,6.15e-05,40503.0,40502.0,0.31188704]
[1645145614870,6.15e-05,40503.0,40502.0,0.36188704]
[1645145615268,6.15e-05,40503.0,40502.0,0.98766374]
[1645145615466,0.2214,40509.0,40503.0,1.234779]
[1645145615670,0.01616643,40514.0,40506.0,0.12345415]
[1645145615869,0.01616643,40514.0,40507.0,0.31188704]
[1645145616068,0.01616643,40514.0,40508.0,0.252912]
[1645145616268,0.01616643,40514.0,40509.0,0.35249146]
[1645145616470,0.01616643,40514.0,40511.0,0.26343302]
[1645145616670,0.01616643,40514.0,40511.0,0.12345353]
[1645145616915,0.01616643,40514.0,40511.0,0.17345353]
[1645145619218,0.01654307,40514.0,40511.0,0.17345353]
[1645145619417,0.01616643,40514.0,40511.0,0.22285353]
[1645145619617,0.01654307,40514.0,40511.0,0.22285353]
[1645145620220,0.01654307,40514.0,40511.0,0.12345353]
[1645145620422,0.110734,40513.0,40511.0,0.12345353]
[1645145620677,0.11111064,40513.0,40501.0,0.31166018]
[1645145620865,0.0095,40512.0,40501.0,0.31426018]
[1645145621065,0.00987664,40512.0,40501.0,0.31426018]
[1645145621265,0.00987664,40512.0,40508.0,0.19523969]
[1645145621266,0.0095,40512.0,40508.0,0.19523969]
[1645145621465,0.01616643,40514.0,40508.0,0.19523969]
[1645145621466,0.01654307,40514.0,40508.0,0.19523969]
[1645145621665,0.00037664,40512.0,40508.0,0.19523969]
[1645145621867,0.0002163,40512.0,40508.0,0.19523969]
[1645145622266,0.01616643,40511.0,40510.0,0.29519566]
[1645145622470,0.00059294,40512.0,40510.0,0.29519566]
[1645145622471,0.0002163,40512.0,40510.0,0.29519566]
[1645145622866,0.00037664,40513.0,40510.0,0.05]
[1645145623066,0.0002163,40513.0,40510.0,0.05]
[1645145623265,0.00059294,40513.0,40510.0,0.05]
[1645145623465,0.0002163,40513.0,40510.0,0.05]
[1645145624066,0.061737,40513.0,40510.0,0.05]
[1645145624612,0.06211364,40513.0,40512.0,0.21489925]
[1645145624915,0.06211364,40513.0,40512.0,0.57655943]
[1645145624916,0.00037664,40513.0,40512.0,0.57655943]
[1645145625117,0.01638273,40514.0,40512.0,0.57655943]
[1645145625118,0.01675937,40514.0,40512.0,0.57655943]
[1645145625312,0.01616643,40514.0,40512.0,0.26489925]
[1645145625712,0.01616643,40514.0,40512.0,0.50489925]
[1645145625713,0.01654307,40514.0,40512.0,0.50489925]
[1645145626517,0.01654307,40514.0,40512.0,0.56662275]
[1645145626816,0.0002163,40515.0,40513.0,0.334779]
[1645145627015,0.0002163,40515.0,40513.0,0.45821448]
[1645145627619,0.00037664,40516.0,40513.0,0.45821448]
[1645145628170,0.2104,40519.0,40513.0,0.45821448]
[1645145628366,0.2104,40519.0,40514.0,0.05]
[1645145628367,0.00037664,40518.0,40514.0,0.05]
[1645145628567,0.2104,40519.0,40515.0,0.334779]
[1645145628865,0.00037664,40518.0,40516.0,0.21056041]
[1645145629066,0.21077664,40519.0,40518.0,0.334779]
[1645145629266,0.2104,40519.0,40518.0,0.334779]
[1645145629465,0.00037664,40521.0,40519.0,0.19918447]
[1645145629670,0.0094,40522.0,40521.0,0.28792615]
[1645145629671,0.00037664,40522.0,40521.0,0.28792615]
[1645145629867,0.01616643,40526.0,40521.0,0.33792615]
[1645145630067,0.00037664,40523.0,40521.0,0.33792615]
[1645145630282,0.00977664,40529.0,40522.0,0.69478352]
[1645145630469,0.00037664,40525.0,40522.0,0.69478352]
[1645145630669,0.00037664,40528.0,40523.0,0.06170034]
[1645145630867,0.0094,40529.0,40524.0,0.334779]
[1645145631070,0.00037664,40528.0,40526.0,0.334779]
[1645145631269,0.00037664,40532.0,40526.0,0.24547101]
[1645145631473,0.00021728,40529.0,40527.0,0.18511017]
[1645145631669,0.00021728,40529.0,40525.0,0.67998933]
[1645145632112,0.00021728,40529.0,40526.0,0.334779]
[1645145632512,0.01616643,40531.0,40527.0,0.18511017]
[1645145632712,0.00021728,40530.0,40527.0,0.18511017]
[1645145633114,0.00059392,40530.0,40527.0,0.18511017]
[1645145633312,0.00021728,40530.0,40528.0,0.05]
[1645145633513,0.06171,40529.0,40528.0,0.05]
[1645145633713,0.06171,40529.0,40528.0,0.11171046]
[1645145635420,0.00037664,40530.0,40528.0,0.11171046]
[1645145635421,0.00037664,40530.0,40528.0,0.45545993]
[1645145635861,0.07846835,40531.0,40528.0,0.45545993]
[1645145636061,0.07825107,40531.0,40528.0,0.11171046]
[1645145636262,0.07837489,40531.0,40528.0,0.11171046]
[1645145636863,0.07837489,40531.0,40527.0,0.18511017]
[1645145637062,0.06220846,40531.0,40527.0,0.18511017]
[1645145637262,0.06208464,40531.0,40527.0,0.18511017]
[1645145637463,0.06183182,40531.0,40528.0,0.06171046]
[1645145637862,6.078e-05,40529.0,40528.0,0.06171046]
[1645145638461,6.078e-05,40529.0,40528.0,0.11171046]
[1645145638863,6.078e-05,40529.0,40528.0,0.44648946]
[1645145639062,6.078e-05,40529.0,40528.0,0.68648946]
[1645145639262,6.078e-05,40529.0,40528.0,0.35171046]
[1645145641214,0.04236286,40531.0,40528.0,0.35171046]
[1645145641616,0.01616643,40529.0,40528.0,0.35171046]
[1645145641816,0.18862443,40529.0,40528.0,0.24]
[1645145642014,0.07789043,40529.0,40528.0,0.15148506]
[1645145642814,0.07795121,40529.0,40528.0,0.15148506]
[1645145643267,0.07795121,40529.0,40528.0,0.20148506]
[1645145643470,0.18868521,40529.0,40528.0,0.20148506]
[1645145643668,0.07795121,40529.0,40528.0,0.20148506]
[1645145644066,0.18868521,40529.0,40528.0,0.20148506]
[1645145644670,0.18868521,40529.0,40528.0,0.15148506]
[1645145644671,0.23868521,40529.0,40528.0,0.15148506]
[1645145644869,0.9,40528.0,40518.0,0.08269]
[1645145645069,0.172477,40520.0,40518.0,0.08269]
[1645145645370,0.31541013,40519.0,40518.0,0.08269]
[1645145645767,0.41541013,40519.0,40518.0,0.08269]
[1645145646913,0.12349,40517.0,40513.0,0.12348086]
[1645145647113,0.110734,40514.0,40511.0,0.0617477]
[1645145647313,0.12690043,40512.0,40511.0,0.0617477]
[1645145648115,0.01616643,40512.0,40511.0,0.0617477]
[1645145648913,0.02016643,40512.0,40511.0,0.28201516]
[1645145649113,0.02016643,40512.0,40511.0,0.33201516]
[1645145650014,0.01616643,40512.0,40511.0,0.33201516]
[1645145650680,0.01616643,40512.0,40511.0,0.29]
[1645145650681,0.12690043,40512.0,40511.0,0.29]
[1645145652272,0.17630043,40512.0,40511.0,0.29]
[1645145653473,0.12370924,40514.0,40511.0,0.29]
[1645145653678,0.12370924,40514.0,40512.0,0.30065046]
[1645145653874,0.06196524,40514.0,40511.0,0.29]
[1645145654073,0.01616643,40515.0,40512.0,0.334779]
[1645145654275,0.2026,40528.0,40512.0,0.06174079]
[1645145654516,0.00021724,40515.0,40511.0,0.71412889]
[1645145654714,0.00021724,40515.0,40513.0,0.061726]
[1645145654915,0.00021724,40515.0,40514.0,0.63542946]
[1645145655126,0.01616643,40526.0,40514.0,0.63542946]
[1645145655314,0.01616643,40526.0,40522.0,0.23976552]
[1645145655716,0.0095,40529.0,40523.0,0.396488]
[1645145655917,0.0095,40529.0,40525.0,0.334779]
[1645145656321,0.07786543,40537.0,40525.0,0.1027]
[1645145656515,0.07786543,40537.0,40536.0,0.22243069]
[1645145656516,0.18859943,40537.0,40536.0,0.22243069]
[1645145656717,0.18859943,40537.0,40536.0,0.27243069]
[1645145657117,0.12690043,40537.0,40536.0,0.27243069]
[1645145658867,0.12690043,40537.0,40536.0,0.27343069]
[1645145659464,0.12690043,40537.0,40536.0,0.51343069]
[1645145660066,0.12690043,40537.0,40536.0,0.24]
[1645145660865,0.12690043,40537.0,40536.0,0.241]
[1645145661065,0.12690043,40537.0,40536.0,0.45118231]
[1645145661266,0.12690043,40537.0,40536.0,0.46784893]
[1645145661569,0.12690043,40537.0,40536.0,0.45118231]
[1645145661765,0.15303678,40537.0,40536.0,0.36892641]
[1645145662010,0.15303678,40537.0,40536.0,0.36792641]
[1645145662411,0.04230278,40537.0,40536.0,0.36792641]
[1645145662812,0.04230278,40537.0,40536.0,0.36892641]
[1645145663116,0.04230278,40537.0,40536.0,0.8811917]
[1645145663415,0.04230278,40537.0,40536.0,1.2659707]
[1645145663416,0.38208784,40537.0,40536.0,1.2659707]
[1645145663611,0.01616643,40537.0,40536.0,0.9659707]
[1645145664216,0.01616643,40537.0,40536.0,0.9649707]
[1645145664513,0.01654119,40538.0,40536.0,1.2649707]
[1645145664713,0.01654119,40538.0,40537.0,0.63797005]
[1645145664913,0.01616643,40538.0,40537.0,0.30319105]
[1645145665112,0.01616643,40538.0,40537.0,0.63797005]
[1645145665313,0.01616643,40538.0,40537.0,0.30319105]
[1645145665517,0.00012366,40539.0,40538.0,0.334779]
[1645145665779,0.00012366,40539.0,40538.0,0.534179]
[1645145666165,0.00037476,40544.0,40538.0,0.534179]
[1645145666367,0.06616643,40549.0,40538.0,0.534179]
[1645145666368,0.00021735,40541.0,40540.0,0.396452]
[1645145666569,0.00021735,40541.0,40540.0,0.434779]
[1645145666772,0.00037476,40546.0,40541.0,0.9]
[1645145666972,0.36592141,40549.0,40542.0,1.67761257]
[1645145667172,0.00037291,40547.0,40542.0,1.98519154]
[1645145667369,0.0098,40556.0,40545.0,0.334779]
[1645145667370,0.00037291,40551.0,40545.0,0.334779]
[1645145667569,0.36629432,40555.0,40547.0,0.334779]
[1645145667772,0.00037291,40552.0,40551.0,0.84354321]
[1645145668075,1.40610388,40571.0,40551.0,0.84354321]
[1645145668076,0.00037291,40555.0,40554.0,0.334779]
[1645145668269,0.68787866,40565.0,40554.0,1.643779]
[1645145668270,0.36592141,40558.0,40554.0,1.643779]
[1645145668469,0.00037291,40556.0,40554.0,1.693779]
[1645145668669,0.00037291,40557.0,40554.0,1.743779]
[1645145668870,0.36592141,40560.0,40554.0,1.743779]
[1645145669068,0.2206,40565.0,40558.0,0.57874384]
[1645145669069,0.00037291,40559.0,40558.0,0.57874384]
[1645145669275,0.36592141,40560.0,40559.0,0.334779]
[1645145669518,0.36592141,40560.0,40559.0,0.334337]
[1645145669519,0.00037291,40560.0,40559.0,0.334337]
[1645145669719,0.36629432,40562.0,40559.0,0.334337]
[1645145669920,0.36592141,40562.0,40559.0,0.334337]
[1645145670119,0.3660454,40562.0,40559.0,0.334337]
[1645145670319,0.3660454,40562.0,40560.0,0.11165138]
[1645145670320,0.00012399,40562.0,40560.0,0.11165138]
[1645145670520,0.00012399,40562.0,40560.0,0.16165138]
[1645145670721,0.00012399,40562.0,40561.0,0.334337]
[1645145670920,0.00012399,40562.0,40560.0,0.11165138]
[1645145670921,0.01616643,40562.0,40560.0,0.11165138]
[1645145671122,0.01616643,40562.0,40560.0,0.05]
[1645145671123,0.56626041,40561.0,40560.0,0.05]
[1645145671322,0.56626041,40561.0,40560.0,0.24]
[1645145671323,0.56564652,40561.0,40560.0,0.24]
[1645145671720,0.71564652,40561.0,40560.0,0.24]
[1645145671925,0.399739,40561.0,40560.0,0.24]
[1645145673027,0.399739,40561.0,40545.0,0.12336321]
[1645145673028,0.9,40560.0,40545.0,0.12336321]
[1645145673294,0.061687,40554.0,40546.0,0.33245891]
[1645145673481,0.500339,40553.0,40546.0,0.33245891]
[1645145673680,0.01616643,40548.0,40546.0,0.33245891]
[1645145674080,0.01616643,40548.0,40547.0,0.21397808]
[1645145674486,0.01616643,40548.0,40547.0,0.26397808]
[1645145674681,0.01616643,40548.0,40547.0,0.05]
[1645145675081,0.01616643,40548.0,40546.0,0.001]
[1645145675282,0.01653934,40548.0,40546.0,0.001]
[1645145675682,0.01653934,40548.0,40547.0,0.21726977]
[1645145675981,0.01616643,40548.0,40547.0,0.26726977]
[1645145676184,0.00059064,40549.0,40547.0,0.26726977]
[1645145676780,0.00021773,40549.0,40547.0,0.26726977]
[1645145677020,0.00037291,40551.0,40547.0,0.26726977]
[1645145677220,0.00021773,40550.0,40548.0,0.39601121]
[1645145677718,0.00021773,40550.0,40549.0,0.3]
[1645145677922,0.00059064,40550.0,40549.0,0.3]
[1645145678124,0.00037291,40554.0,40549.0,0.35]
[1645145678319,0.00037291,40555.0,40551.0,0.061658]
[1645145678519,0.00021782,40552.0,40550.0,0.18497619]
[1645145678718,0.00021782,40552.0,40551.0,0.384337]
[1645145678921,1.073e-05,40553.0,40552.0,0.334337]
[1645145679125,0.02596643,40565.0,40552.0,1.992737]
[1645145679324,0.02596643,40565.0,40557.0,0.061647]
[1645145679526,0.01616643,40565.0,40557.0,0.061647]
[1645145679719,0.01616643,40565.0,40558.0,0.2763276]
[1645145679919,0.01616643,40565.0,40559.0,0.20740322]
[1645145680120,0.01616643,40565.0,40560.0,0.1867505]
[1645145680521,0.01616643,40565.0,40560.0,0.24839858]
[1645145681972,0.01638173,40565.0,40559.0,0.6314185]
[1645145682375,0.01638173,40565.0,40560.0,1.643337]
[1645145682376,0.0002153,40565.0,40560.0,1.643337]
[1645145682576,0.0002153,40565.0,40560.0,1.99498508]
[1645145682774,6.079e-05,40564.0,40561.0,1.66715936]
[1645145683074,0.00043188,40564.0,40562.0,0.384337]
[1645145683274,0.05,40573.0,40565.0,0.6]
[1645145683275,0.00075202,40571.0,40565.0,0.6]
[1645145683473,0.00061197,40571.0,40570.0,0.22888833]
[1645145683873,0.00061197,40571.0,40570.0,0.27888833]
[1645145684416,0.2173,40579.0,40572.0,0.061631]
[1645145684612,0.01616643,40575.0,40573.0,0.21621208]
[1645145684819,0.01616643,40575.0,40573.0,0.26621208]
[1645145685112,0.01616643,40575.0,40574.0,0.26314688]
[1645145685913,0.01616643,40575.0,40574.0,0.56314688]
[1645145686115,0.2132,40588.0,40574.0,0.56314688]
[1645145686116,0.01616643,40584.0,40575.0,0.334337]
[1645145686315,0.01616643,40584.0,40574.0,0.56314688]
[1645145686316,0.01616643,40584.0,40577.0,1.643337]
[1645145686513,0.01616643,40584.0,40579.0,0.334337]
[1645145686714,0.01616643,40584.0,40581.0,0.334337]
[1645145686915,0.00012291,40583.0,40582.0,0.3494]
[1645145687114,0.00049158,40589.0,40588.0,0.20730613]
[1645145687418,0.00049158,40589.0,40588.0,0.51446365]
[1645145687614,0.00049158,40589.0,40588.0,0.56446365]
[1645145687813,0.05,40593.0,40588.0,0.56446365]
[1645145688014,0.2224,40595.0,40588.0,0.56446365]
[1645145688015,0.2224,40595.0,40590.0,0.30503511]
[1645145688263,0.2224,40595.0,40590.0,0.41663816]
[1645145688466,0.2224,40595.0,40590.0,0.11160305]
[1645145688667,0.0094,40599.0,40590.0,0.11160305]
[1645145688668,0.200339,40594.0,40590.0,0.11160305]
[1645145688864,0.200339,40594.0,40590.0,0.05]
[1645145689265,0.3,40596.0,40589.0,0.29643071]
[1645145689466,0.200339,40595.0,40589.0,0.58058995]
[1645145690074,0.200339,40595.0,40589.0,0.29643071]
[1645145690766,0.200339,40595.0,40589.0,0.29743071]
[1645145690965,0.200339,40595.0,40589.0,0.12422462]
[1645145691167,0.250339,40590.0,40589.0,0.001]
[1645145691767,0.300339,40590.0,40589.0,0.001]
[1645145692021,0.300339,40590.0,40580.0,0.2035004]
[1645145692222,0.061634,40587.0,40580.0,0.2035004]
[1645145692423,0.200339,40586.0,40584.0,0.28688393]
[1645145692624,0.15,40590.0,40584.0,0.28688393]
[1645145692821,0.200339,40589.0,40584.0,0.28688393]
[1645145693020,0.00021904,40586.0,40580.0,0.2535004]
[1645145693320,0.00021904,40586.0,40584.0,0.06162335]
[1645145693922,0.0099,40589.0,40584.0,0.06162335]
[1645145694124,0.3,40597.0,40584.0,0.06162335]
[1645145694324,0.00021903,40587.0,40585.0,0.22009774]
[1645145694622,0.00021903,40587.0,40585.0,0.34333118]
[1645145694824,0.00021903,40587.0,40585.0,0.39333118]
[1645145695127,0.200339,40594.0,40585.0,0.39333118]
[1645145695324,0.00021903,40588.0,40585.0,0.39333118]
[1645145695766,0.00021903,40588.0,40585.0,0.45494518]
[1645145696166,0.461615,40594.0,40585.0,0.45494518]
[1645145696367,0.461615,40594.0,40592.0,0.22450175]
[1645145696668,0.200339,40593.0,40592.0,0.22450175]
[1645145696868,0.201339,40593.0,40592.0,0.22450175]
[1645145697068,0.201339,40593.0,40592.0,0.20205158]
[1645145697867,0.201339,40593.0,40591.0,0.06161342]
[1645145698067,0.561956,40593.0,40589.0,0.12322557]
[1645145698367,0.561956,40593.0,40589.0,0.17322557]
[1645145698767,0.061622,40589.0,40586.0,0.001]
[1645145698967,0.00036924,40592.0,40586.0,0.001]
[1645145699168,0.200339,40592.0,40587.0,0.06127651]
[1645145699420,0.00036924,40592.0,40586.0,0.36688099]
[1645145700014,6.041e-05,40594.0,40586.0,0.36588099]
[1645145700219,0.00020447,40591.0,40589.0,0.05]
[1645145700415,0.06182147,40591.0,40589.0,0.05]
[1645145700616,0.200339,40590.0,40589.0,0.05]
[1645145701216,0.200339,40590.0,40588.0,0.05]
[1645145701416,0.200339,40590.0,40586.0,0.001]
[1645145701417,0.20070824,40590.0,40586.0,0.33990835]
[1645145701616,0.00036924,40590.0,40586.0,0.001]
[1645145701816,0.06198624,40591.0,40586.0,0.001]
[1645145702015,0.00036924,40590.0,40585.0,0.30410748]
[1645145702216,0.06198624,40591.0,40585.0,0.30410748]
[1645145702416,0.00036924,40590.0,40585.0,0.30410748]
[1645145702618,0.00036924,40590.0,40585.0,0.36572376]
[1645145702822,0.00036924,40590.0,40585.0,0.61658009]
[1645145703171,0.12350064,40591.0,40585.0,0.61658009]
[1645145703370,0.00036924,40590.0,40585.0,0.61658009]
[1645145703572,0.06167717,40591.0,40585.0,0.61658009]
[1645145703771,0.3,40596.0,40593.0,0.1198024]
[1645145703772,0.061615,40595.0,40593.0,0.1198024]
[1645145704071,0.200339,40594.0,40593.0,0.1198024]
[1645145704476,0.500339,40594.0,40593.0,0.1198024]
[1645145704771,0.600339,40594.0,40593.0,0.1198024]
[1645145704970,0.600339,40594.0,40593.0,0.1208024]
[1645145705171,0.600339,40594.0,40593.0,0.34882217]
[1645145705383,0.300339,40594.0,40593.0,0.34882217]
[1645145706072,0.300339,40594.0,40593.0,0.34782217]
[1645145706936,0.301339,40594.0,40593.0,0.34782217]
[1645145707125,0.301339,40594.0,40593.0,0.34002551]
[1645145707529,0.201339,40594.0,40593.0,0.34002551]
[1645145707728,0.301339,40594.0,40593.0,0.34002551]
[1645145708129,0.300339,40594.0,40593.0,0.34002551]
[1645145708827,0.301339,40594.0,40593.0,0.34002551]
[1645145710128,0.200339,40594.0,40593.0,0.34002551]
[1645145710765,0.201339,40594.0,40593.0,0.34002551]
[1645145712065,0.200339,40594.0,40593.0,0.34002551]
[1645145712267,0.195339,40594.0,40593.0,0.34002551]
[1645145712867,0.195339,40594.0,40593.0,0.34102551]
[1645145713172,0.195339,40594.0,40593.0,0.30692296]
[1645145714069,0.195339,40594.0,40593.0,0.30592296]
[1645145715026,0.195339,40594.0,40593.0,0.30692296]
[1645145716122,0.195339,40594.0,40593.0,0.30592296]
[1645145716923,0.195339,40594.0,40593.0,0.30692296]
[1645145717124,0.061613,40595.0,40593.0,0.30692296]
[1645145717325,0.00020331,40596.0,40593.0,0.30692296]
[1645145718024,0.195376,40596.0,40593.0,0.36852849]
[1645145718265,0.195376,40596.0,40593.0,0.36752849]
[1645145718470,0.195376,40596.0,40593.0,0.42913349]
[1645145718766,0.195376,40596.0,40593.0,0.43013349]
[1645145718966,0.06171303,40597.0,40593.0,0.43013349]
[1645145719168,0.061606,40597.0,40593.0,0.43013349]
[1645145719370,0.06180947,40597.0,40594.0,0.12320431]
[1645145719570,0.06180947,40597.0,40595.0,0.061603]
[1645145719769,0.06180947,40597.0,40595.0,0.12320579]
[1645145719770,0.00057086,40597.0,40595.0,0.12320579]
[1645145720370,0.195376,40596.0,40595.0,0.12320579]
[1645145720670,0.00036739,40597.0,40595.0,0.12320579]
[1645145720869,0.01037937,40598.0,40595.0,0.12420579]
[1645145721072,0.00036739,40597.0,40595.0,0.10696245]
[1645145721270,0.01037937,40598.0,40595.0,0.10696245]
[1645145721471,5.1,40600.0,40595.0,0.10696245]
[1645145721472,0.00036739,40597.0,40595.0,0.10696245]
[1645145721671,0.00036739,40599.0,40595.0,0.10696245]
[1645145721921,0.00021198,40598.0,40596.0,0.18479472]
[1645145722719,0.00036739,40599.0,40596.0,0.18479472]
[1645145722921,0.00036739,40599.0,40597.0,0.06159675]
[1645145723120,0.00021197,40599.0,40597.0,0.06159675]
[1645145723320,0.00057936,40599.0,40597.0,0.06159675]
[1645145723521,0.00021197,40599.0,40597.0,0.06159675]
[1645145723723,0.00057936,40599.0,40597.0,0.05825831]
[1645145723919,5.15036739,40600.0,40597.0,0.11985431]
[1645145724118,0.00036739,40599.0,40597.0,0.11985431]
[1645145724319,5.10057134,40600.0,40597.0,0.11985431]
[1645145724520,0.00036739,40599.0,40597.0,0.11985431]
[1645145724720,5.41757238,40600.0,40597.0,0.11985431]
[1645145724920,0.00036739,40599.0,40597.0,0.11985431]
[1645145725119,5.0,40600.0,40597.0,0.11985431]
[1645145725321,0.00036739,40599.0,40597.0,0.11985431]
[1645145725874,5.41736843,40600.0,40597.0,0.11985431]
[1645145726074,0.00036739,40599.0,40598.0,0.32085064]
[1645145726276,5.41736843,40600.0,40597.0,0.11985431]
[1645145726474,0.00036739,40599.0,40597.0,0.11985431]
[1645145726875,5.41700104,40600.0,40597.0,0.11985431]
[1645145727073,0.00036739,40599.0,40597.0,0.11985431]
[1645145727275,0.41700104,40599.0,40597.0,0.11985431]
[1645145727474,0.00036739,40599.0,40597.0,0.11985431]
[1645145727677,0.41736843,40599.0,40597.0,0.11985431]
[1645145727875,0.41700104,40599.0,40597.0,0.11985431]
[1645145728077,0.41736843,40599.0,40597.0,0.11985431]
[1645145728579,0.41700104,40598.0,40597.0,0.11985431]
[1645145728779,0.41700104,40598.0,40597.0,0.05825831]
[1645145728976,0.41700104,40598.0,40596.0,0.57106771]
[1645145728977,0.07389639,40598.0,40596.0,0.57106771]
[1645145729176,0.49126482,40598.0,40597.0,0.05]
[1645145729421,0.49089743,40598.0,40597.0,0.04348012]
[1645145729817,0.49089743,40598.0,40596.0,0.24639072]
[1645145730017,0.49126482,40598.0,40596.0,0.24639072]
[1645145730518,0.49126482,40598.0,40596.0,0.123194]
[1645145730519,0.41700104,40597.0,40596.0,0.123194]
[1645145730719,0.41700104,40597.0,40595.0,0.12320371]
[1645145730919,0.41736843,40597.0,40595.0,0.12320371]
[1645145731323,0.41736843,40597.0,40595.0,0.17320371]
[1645145731821,0.41736843,40597.0,40595.0,0.12320371]
[1645145733276,0.00036739,40597.0,40595.0,0.12320371]
[1645145733476,0.41700104,40597.0,40595.0,0.12293171]
[1645145733677,0.00036739,40597.0,40595.0,0.12293171]
[1645145733879,0.49110216,40598.0,40595.0,0.12293171]
[1645145734077,0.00036739,40597.0,40595.0,0.12293171]
[1645145734276,0.49146955,40598.0,40595.0,0.12293171]
[1645145734477,0.00036739,40597.0,40595.0,0.12293171]
[1645145734676,0.49110216,40598.0,40595.0,0.12293171]
[1645145734677,0.49089743,40598.0,40595.0,0.12293171]
[1645145734876,0.00036739,40597.0,40595.0,0.12293171]
[1645145735077,0.41700104,40597.0,40595.0,0.12293171]
[1645145735277,0.00036739,40597.0,40595.0,0.12293171]
[1645145735477,0.41700104,40597.0,40595.0,0.12293171]
[1645145735676,0.41736843,40597.0,40595.0,0.12293171]
[1645145736077,0.41236843,40597.0,40595.0,0.12293171]
[1645145736277,0.13570383,40598.0,40595.0,0.12293171]
[1645145736931,0.13570383,40598.0,40594.0,0.05]
[1645145737123,0.13549939,40598.0,40593.0,0.351607]